[Event "Israel National League 2024"]
[Site "Israel"]
[Date "2024.02.16"]
[Round "7.33"]
[White "Yaniv, Yuval"]
[Black "Grinberg, Eyal"]
[Result "0-1"]
[ECO "B51"]
[WhiteElo "2383"]
[BlackElo "2471"]
[Annotator "TA"]
[PlyCount "66"]
[EventDate "2024.01.07"]
[EventType "team-tourn"]
[EventCountry "ISR"]
[SourceTitle "playchess.com"]
[Source "ChessBase"]
[SourceQuality "1"]
[TimeControl "40/5400+30:1800+30"]

{[%evp 14,66,27,22,20,-59,-51,-43,-52,-54,-47,-56,-71,-106,-112,-112,-123,-102,-55,-55,-66,-64,-75,-52,-29,-54,-50,-58,-62,-52,-47,-51,-44,-58,-57,-68,-76,-80,-71,-137,-136,-300,-273,-254,-273,-267,-272,-647,-632,-5297,-5252,-29988,-29989,-29993,-29994]} 1. e4 {[%emt 0:03:05]} c5 {[%emt 0:01:00]} 2. Nf3 {[%emt 0:00:13]} d6 {[%emt 0:00:05]} 3. Bb5+ {[%emt 0:00:09]} Nd7 {[%emt 0:00:35]} 4. d4 {[%emt 0:00:21]} cxd4 {[%emt 0:01:01]} 5. Nxd4 {[%emt 0:00:08]} Ngf6 {[%emt 0:00:17]} 6. O-O {[%emt 0:00:19]} e6 {[%emt 0:02:26]} 7. c4 {[%emt 0:09:33]} Be7 {[%emt 0:03:29]} 8. Nc3 {[%emt 0:01:28]} O-O {[%emt 0:00:10]} 9. f4 {[%emt 0:06:23]} (9. Bxd7 $11 Bxd7 10. h3) 9... Nb6 {[%emt 0:10:10]} 10. e5 {[%emt 0:05:29]} dxe5 {[%emt 0:06:06] Black is slightly better.} 11. fxe5 {[%emt 0:00:09]} a6 $1 {[%emt 0:02:22]} 12. exf6 {[%emt 0:08:06]} Bxf6 {[%emt 0:01:29]} 13. Be3 {[%emt 0:28:03][%cal Oc4c5] Threatens to win with c5!} axb5 {[%emt 0:01:44]} 14. Ne4 {[%emt 0:03:15] aiming for Nxf6+.} Be7 {[%emt 0:10:04]} ({Of course not} 14... bxc4 $6 15. Nxf6+ gxf6 16. Bh6 $11) 15. cxb5 {[%emt 0:01:57]} Nd5 {[%emt 0:03:00]} (15... e5 $17 16. Nf5 Bxf5 17. Qxd8 Rfxd8 18. Rxf5 Nc4) 16. Bf2 $15 {[%emt 0:00:38]} f5 {[%emt 0:02:48]} 17. Nc3 {[%emt 0:00:52]} Nxc3 {[%emt 0:06:15]} 18. bxc3 {[%emt 0:00:06]} Qd5 {[%emt 0:09:55][%cal Oe7f6]} 19. Qe2 {[%emt 0:09:38]} Ra4 {[%emt 0:05:01]} 20. Rfe1 {[%emt 0:07:56][%cal Oe2d1]} Bf6 {[%emt 0:03:09]} 21. Rad1 {[%emt 0:00:29][%cal Rd4e6]} Rxa2 {[%emt 0:06:23]} 22. Qf1 {[%emt 0:01:08][%cal Od4e6]} e5 {[%emt 0:05:31] ...Rxf2 is the strong threat.} 23. Nxf5 $1 {[%emt 0:01:47]} Qe6 {[%emt 0:01:04]} 24. Ng3 {[%emt 0:04:08]} Bd8 $1 {[%emt 0:07:44]} 25. Re2 {[%emt 0:02:27]} Bb6 $36 {[%emt 0:00:36][%mdl 2048] Black is really pushing.} 26. Ne4 {[%emt 0:00:38] [#]} ({White should play} 26. Rxa2 Qxa2 27. Ne4) 26... Ra4 $1 $17 {[%emt 0:02:56][%cal Oa4e4] Hoping for ...Rxe4! Black is more active.} 27. Rd6 $2 {[%emt 0:04:26] [#] Loses the game.} (27. c4 $17 {keeps fighting.}) 27... Rxf2 $1 $19 {[%emt 0:04:23][%mdl 512]} 28. Rxf2 {[%emt 0:00:49]} Bxf2+ {[%emt 0:00:09]} 29. Kxf2 {[%emt 0:00:47]} Rxe4 {[%emt 0:01:26]} 30. Rd8+ $2 {[%emt 0:00:29]} (30. Rxe6 Rf4+ 31. Ke3 Rxf1 32. Re8+ Rf8 33. Rxe5) 30... Kf7 {[%emt 0:00:09] ( -> ...Rf4+)} 31. Kg1+ {[%emt 0:00:06]} Rf4 {[%emt 0:00:33]} 32. Qd3 {[%emt 0:00:53]} Qb6+ {[%emt 0:00:13]} 33. Kh1 {[%emt 0:00:01] [#]} Qxd8 $3 {[%emt 0:00:21][%mdl 512] Weighted Error Value: White=0.78/Black=0.03 (flawless) .  Loses game:     	White=1     	---        Mistake:       	White=3     	Black=1      Inaccurate:     	White=2     	---        OK:         	White=7     	Black=8      Best:        	---       	Black=4      Strong:       	White=1     	Black=3      Brilliant:      	---       	Black=1} 0-1

[Event "Israel National League 2024"]
[Site "Israel"]
[Date "2024.02.16"]
[Round "7.34"]
[White "Bakalchuk, Johnatan"]
[Black "Efroimski, Marsel"]
[Result "0-1"]
[ECO "A14"]
[WhiteElo "2450"]
[BlackElo "2434"]
[Annotator "TA"]
[PlyCount "90"]
[EventDate "2024.01.07"]
[EventType "team-tourn"]
[EventCountry "ISR"]
[SourceTitle "playchess.com"]
[Source "ChessBase"]
[SourceQuality "1"]
[TimeControl "40/5400+30:1800+30"]

{[%evp 18,90,0,-31,0,0,0,-11,0,5,6,0,44,49,51,49,59,30,89,31,44,10,28,23,12,15,18,-7,0,0,37,42,43,29,36,0,0,-33,-8,-64,0,0,0,0,0,-10,-9,-170,-155,-185,-181,-178,-43,-39,-40,-25,-19,-157,-144,-189,-225,-245,-242,-589,-541,-3642,-2160,-1647,-5075,-1919,-1950,-939,-29973,-29972,-29972]} 1. c4 {[%emt 0:00:31]} e6 {[%emt 0:02:48]} 2. Nf3 {[%emt 0:01:06]} d5 {[%emt 0:00:03]} 3. b3 {[%emt 0:00:42]} Nf6 {[%emt 0:00:18]} 4. g3 {[%emt 0:00:11]} Be7 {[%emt 0:00:14]} 5. Bg2 {[%emt 0:00:07]} O-O {[%emt 0:00:11]} 6. O-O {[%emt 0:00:15]} c5 {[%emt 0:00:06]} 7. e3 {[%emt 0:00:17]} Nc6 {[%emt 0:00:15]} 8. Bb2 {[%emt 0:00:40]} d4 {[%emt 0:00:16]} 9. exd4 {[%emt 0:00:07]} cxd4 {[%emt 0:00:04]} 10. d3 {[%emt 0:01:52]} Bc5 {[%emt 0:04:54]} 11. Re1 {[%emt 0:04:38]} a5 {[%emt 0:00:19]} 12. Ne5 {[%emt 0:06:12]} Nxe5 {[%emt 0:00:04] The position is equal.} 13. Rxe5 {[%emt 0:00:08]} Nd7 {[%emt 0:00:04][%cal Bf6d7,Bd7b8,Bb8a6,Ba6b4][%mdl 32]} 14. Re2 {[%emt 0:04:56]} Ra7 {[%emt 0:07:54]} 15. Na3 {[%emt 0:04:11]} e5 {[%emt 0:11:52]} 16. Nb5 {[%emt 0:00:22]} Ra6 {[%emt 0:00:04]} 17. a3 {[%emt 0:02:13]} f6 {[%emt 0:02:14]} (17... Ba7 $11 {remains equal.}) 18. Qd2 {[%emt 0:01:40]} ({Better is} 18. Qe1 $16) 18... Nb8 $14 {[%emt 0:01:26]} 19. b4 {[%emt 0:05:41]} axb4 {[%emt 0:04:00]} 20. axb4 {[%emt 0:00:10]} Rxa1+ {[%emt 0:04:03]} 21. Bxa1 {[%emt 0:00:08]} Be7 {[%emt 0:00:03]} 22. Qe1 {[%emt 0:19:03]} Na6 {[%emt 0:11:50]} 23. c5 {[%emt 0:01:43][%cal Ob5d4]} b6 {[%emt 0:18:14][%cal Bb7b6,Bb6c5][%mdl 32] [#]} 24. Nxd4 $1 {[%emt 0:05:27]} exd4 {[%emt 0:01:00]} 25. Rxe7 {[%emt 0:00:17] And now cxb6 would win.} bxc5 {[%emt 0:00:07]} 26. b5 {[%emt 0:19:16]} Nb4 {[%emt 0:00:14]} 27. Ra7 {[%emt 0:01:20]} Re8 {[%emt 0:07:39]} (27... Nxd3 $6 28. Qe7 Qxe7 29. Rxe7 $14) 28. Qb1 {[%emt 0:02:17]} (28. Qd1 $11) 28... Qb6 {[%emt 0:04:09]} (28... Qd6 $15) 29. Qb3+ $1 $11 {[%emt 0:01:22]} Be6 {[%emt 0:01:33]} (29... Kh8 $5 30. Qf7 $8 Rg8 $11) 30. Qa4 {[%emt 0:00:19]} Bf5 {[%emt 0:05:18]} (30... Nxd3 $2 31. Ra6 Qd8 32. b6 $18) 31. Ra8 {[%emt 0:11:27]} Rxa8 {[%emt 0:00:48]} 32. Qxa8+ {[%emt 0:00:04]} (32. Bxa8 $11 Qe6 (32... Bxd3 33. Bxd4 Qxb5 34. Qxb5 $11) (32... Nxd3 33. Bd5+ Kf8 34. Qa8+ Ke7 35. Be4 $11) 33. Be4 Bxe4 (33... Nxd3 $2 34. Qa8+ Qc8 35. Qxc8+ Bxc8 36. Bxd3 $18) 34. dxe4) 32... Kf7 $19 {[%emt 0:00:04]} 33. Bd5+ {[%emt 0:06:44]} Nxd5 {[%emt 0:04:50]} 34. Qxd5+ {[%emt 0:00:02][%mdl 4096] Endgame. KQB-KQB} Kg6 {[%emt 0:00:34]} (34... Be6 $19 35. Qc6 Qxc6 36. bxc6 Ke7 (36... Bf5 37. c7 $17)) 35. g4 $1 $15 {[%emt 0:00:58]} Bxg4 {[%emt 0:01:49]} 36. Qg2 $1 {[%emt 0:00:07]} Kh5 {[%emt 0:02:27]} 37. h3 {[%emt 0:00:44]} (37. Qd5+ $1 $11 {keeps the balance.} Kh6 38. Qe4) 37... Bf5 $17 {[%emt 0:00:13] Active counter play!} 38. Qxg7 {[%emt 0:00:34]} Qxb5 {[%emt 0:02:20]} (38... Bxh3 39. Qxh7+ Kg5 40. Bb2 $18 (40. Qxh3 Qxb5 41. Qg3+ Kh6 $18)) (38... Bxd3 $2 39. Qg4+ Kh6 40. Bb2 $18) 39. Qxf6 {[%emt 0:00:59]} Qxd3 {[%emt 0:00:31]} 40. h4 $2 {[%emt 0:01:08]} (40. Qf8 {is a better chance.} Qc2 (40... Bxh3 41. Qxc5+ Kg6 42. Qc6+ Kf7 43. Qc7+ Kf6 44. Qf4+ Ke7 45. Qe5+ Kf7 46. Qc7+ Kf6 47. Kh2 $16) 41. Bb2) 40... Kg4 $19 {[%emt 0:02:57] [#] ( -> ...Kh3)} 41. Qe5 {[%emt 0:04:44]} Qd1+ {[%emt 0:01:41]} 42. Kh2 {[%emt 0:00:08]} Qf3 {[%emt 0:00:36]} ({Weaker is} 42... Qxa1 43. Qg3+ Kh5 44. Qg5#) ({Inferior is} 42... Kxh4 43. Qxf5 Qxa1 44. Qxh7+ Kg5 45. Qe7+ Kf4 46. Qxc5 $11) 43. Kg1 {[%emt 0:02:42]} Be4 {[%emt 0:02:44][%csl Ge4][%cal Rf3g2]} 44. Qe6+ {[%emt 0:03:06]} Kxh4 {[%emt 0:00:58][%csl Ge4][%cal Rf3g2]} 45. Qe7+ {[%emt 0:01:55]} Kh3 {[%emt 0:00:17] Weighted Error Value: White=0.56/Black=0.11 (very precise) .  Loses game:     	White=1     	---        Mistake:       	White=4     	Black=3      Inaccurate:     	White=6     	Black=2      OK:         	White=4     	Black=15     Best:        	---       	Black=4      Strong:       	White=3     	---        Brilliant:      	White=1     	---} 0-1

[Event "Israel National League 2024"]
[Site "Israel"]
[Date "2024.02.16"]
[Round "7.35"]
[White "Vagman, Roy"]
[Black "Shohat, Yotam"]
[Result "1-0"]
[ECO "B51"]
[WhiteElo "2302"]
[BlackElo "2328"]
[Annotator "TA"]
[PlyCount "137"]
[EventDate "2024.01.07"]
[EventType "team-tourn"]
[EventCountry "ISR"]
[SourceTitle "playchess.com"]
[Source "ChessBase"]
[SourceQuality "1"]
[TimeControl "40/5400+30:1800+30"]

{[%evp 55,137,0,-6,-33,0,0,46,50,39,49,37,41,47,45,48,37,49,51,55,55,52,56,108,102,122,89,116,110,101,41,46,41,41,43,43,52,59,48,107,77,79,79,73,72,112,61,407,387,406,208,208,200,1078,1018,1521,1466,1147,725,1118,394,1464,839,575,575,1146,626,1150,243,1960,1735,2093,2020,2368,2093,29960,11593,29980,29981,29981,29982,29987,29988,29988,29989]} 1. e4 {[%emt 0:03:26]} c5 {[%emt 0:00:19]} 2. Nf3 {[%emt 0:00:54]} d6 {[%emt 0:00:07]} 3. Bb5+ {[%emt 0:00:15]} Nd7 {[%emt 0:00:07]} 4. Ba4 {[%emt 0:00:27]} Ngf6 {[%emt 0:00:07]} 5. O-O {[%emt 0:00:14]} e6 {[%emt 0:00:04]} 6. d3 {[%emt 0:00:50]} Be7 {[%emt 0:00:09]} 7. c4 {[%emt 0:00:19]} O-O {[%emt 0:00:06]} 8. Nc3 {[%emt 0:00:04]} a6 {[%emt 0:00:06]} 9. Qe2 {[%emt 0:00:42]} Qc7 {[%emt 0:00:21]} 10. Nd2 {[%emt 0:03:40]} Ne5 {[%emt 0:05:32]} 11. f4 {[%emt 0:00:06]} Nc6 {[%emt 0:00:04]} 12. Bxc6 {[%emt 0:00:10]} Qxc6 {[%emt 0:00:02]} 13. b3 {[%emt 0:00:16]} b5 {[%emt 0:05:39]} 14. Bb2 {[%emt 0:00:34]} b4 {[%emt 0:29:24]} 15. Na4 {[%emt 0:18:22]} Bb7 {[%emt 0:04:39]} 16. Rf3 {[%emt 0:04:37]} Rfe8 {[%emt 0:25:04]} 17. Raf1 {[%emt 0:24:22]} d5 {[%emt 0:10:39]} 18. Rg3 {[%emt 0:18:02]} d4 {[%emt 0:09:54]} 19. e5 {[%emt 0:09:34]} Nd7 {[%emt 0:00:09]} 20. Qg4 {[%emt 0:01:00]} g6 {[%emt 0:00:06]} 21. h4 {[%emt 0:01:12]} Kh8 {[%emt 0:01:33]} 22. Nf3 {[%emt 0:02:49]} Rg8 {[%emt 0:03:14]} 23. Ng5 {[%emt 0:03:43]} Raf8 {[%emt 0:00:18]} 24. Qh3 {[%emt 0:03:24]} Rg7 {[%emt 0:01:39]} 25. Bc1 {[%emt 0:01:01]} Bc8 {[%emt 0:01:59]} 26. Nf3 {[%emt 0:01:10]} f5 {[%emt 0:00:39]} 27. h5 {[%emt 0:00:52]} gxh5 {[%emt 0:00:55]} 28. Rxg7 {[%emt 0:00:11]} Kxg7 {[%emt 0:00:02]} 29. Qxh5 {[%emt 0:00:07]} Nb8 {[%emt 0:01:25]} 30. g4 {[%emt 0:02:19]} Qe8 {[%emt 0:00:36]} (30... fxg4 $11 31. Qxg4+ Kh8) 31. Qxe8 $14 {[%emt 0:00:31]} Rxe8 {[%emt 0:00:01]} 32. gxf5 {[%emt 0:00:06]} exf5 {[%emt 0:00:04]} 33. Nb6 {[%emt 0:00:45]} Bb7 {[%emt 0:01:18]} 34. Nd5 {[%emt 0:00:14]} Bd8 {[%emt 0:00:29]} 35. Rf2 {[%emt 0:00:14]} Re6 {[%emt 0:00:16]} 36. Rh2 {[%emt 0:00:46]} Nc6 {[%emt 0:00:43]} 37. Nh4 {[%emt 0:00:47]} Bxh4 {[%emt 0:00:16]} 38. Rxh4 {[%emt 0:00:02]} Rg6+ {[%emt 0:00:33]} (38... Rh6 $14 39. Rxh6 Kxh6) 39. Kf2 $16 {[%emt 0:00:10]} Nd8 {[%emt 0:00:48]} 40. Rh5 {[%emt 0:00:28]} Ne6 {[%emt 0:00:31]} 41. Rxf5 {[%emt 0:30:24]} Rh6 {[%emt 0:01:57]} 42. Rf6 {[%emt 0:00:00]} (42. Kg3 $16) 42... Rxf6 $14 {[%emt 0:02:53]} 43. Nxf6 {[%emt 0:00:00]} Kg6 {[%emt 0:00:05]} 44. Ne8 {[%emt 0:00:00]} Bc6 {[%emt 0:07:25]} 45. Nd6 {[%emt 0:00:00]} Ng7 {[%emt 0:01:06]} 46. a3 {[%emt 0:00:00]} h5 {[%emt 0:06:36]} ({Better is} 46... a5 $14) 47. axb4 $16 {[%emt 0:00:00]} cxb4 {[%emt 0:00:02]} 48. Bb2 {[%emt 0:00:00]} Nf5 {[%emt 0:00:10]} 49. Nxf5 {[%emt 0:00:00]} Kxf5 {[%emt 0:00:02]} 50. Kg3 {[%emt 0:00:00]} (50. Bxd4 $16 {Hoping for Bc5.} Kxf4 51. Bc5 Kxe5 52. Bxb4 (52. d4+ Ke4 $11)) 50... h4+ $2 {[%emt 0:08:44][%mdl 8192]} ({Black should try} 50... a5 $1 $14) 51. Kxh4 $18 {[%emt 0:00:00]} Bf3 {[%emt 0:00:06]} 52. Bxd4 {[%emt 0:00:00]} (52. Kg3 $142 Be2 53. c5 (53. Bxd4 Bxd3 54. Bc5 Bc2 $14) 53... Bxd3 54. c6 (54. Bxd4 Be4 $11)) 52... Be2 $18 {[%emt 0:00:29] [#]} 53. c5 $1 {[%emt 0:00:00]} Bd1 $2 {[%emt 0:01:39]} (53... Bf3 54. Kg3 Bc6) 54. c6 $18 {[%emt 0:00:00]} Bxb3 {[%emt 0:00:04]} 55. c7 {[%emt 0:00:00]} Be6 {[%emt 0:00:04]} 56. Kg3 {[%emt 0:00:00]} Bc8 {[%emt 0:02:55]} 57. Kf3 $2 {[%emt 0:00:00]} (57. Bc5 a5 58. Kf3) 57... Ke6 $2 {[%emt 0:00:13]} (57... Bb7+ 58. Ke3 Ke6) 58. Ke4 {[%emt 0:00:00]} Bb7+ {[%emt 0:00:05]} 59. Ke3 {[%emt 0:00:00]} Bc8 {[%emt 0:03:41] [#]} 60. Bc5 $1 {[%emt 0:00:00]} b3 {[%emt 0:00:03]} 61. Kd2 $2 {[%emt 0:00:00]} (61. Ba3) 61... a5 $2 {[%emt 0:01:39]} (61... Kf5 62. Be3 (62. Kc3 Kxf4 63. Bd4 b2 $18) 62... Ke6) 62. Kc3 $18 {[%emt 0:00:00]} a4 {[%emt 0:00:01]} 63. Ba3 {[%emt 0:00:00]} Kd5 {[%emt 0:00:54]} 64. Kb4 {[%emt 0:00:00]} Kd4 {[%emt 0:00:56]} 65. Kxa4 {[%emt 0:00:00]} Be6 {[%emt 0:00:40]} 66. Kb5 {[%emt 0:00:00]} Kxd3 {[%emt 0:00:28]} 67. Kc6 {[%emt 0:00:00]} Bc8 {[%emt 0:00:28]} 68. Kd6 {[%emt 0:00:02]} Ke4 {[%emt 0:00:32]} 69. e6 {[%emt 0:00:13]} 1-0

[Event "Israel National League 2024"]
[Site "Israel"]
[Date "2024.02.16"]
[Round "7.36"]
[White "Kochavi, Dana"]
[Black "Guz, Ari"]
[Result "1/2-1/2"]
[ECO "B62"]
[WhiteElo "2121"]
[BlackElo "2291"]
[Annotator "NA RC"]
[PlyCount "68"]
[EventDate "2024.01.07"]
[EventType "team-tourn"]
[EventCountry "ISR"]
[SourceTitle "playchess.com"]
[Source "ChessBase"]
[SourceQuality "1"]
[TimeControl "40/5400+30:1800+30"]

1. e4 {[%emt 0:00:02]} c5 {[%emt 0:04:45]} 2. Nf3 {[%emt 0:00:08]} d6 {[%emt 0:00:10]} 3. d4 {[%emt 0:00:04]} cxd4 {[%emt 0:00:09]} 4. Nxd4 {[%emt 0:00:03]} Nf6 {[%emt 0:00:12]} 5. Nc3 {[%emt 0:00:05]} Nc6 {[%emt 0:00:09]} 6. Bg5 {[%emt 0:00:05]} e6 {[%emt 0:00:09]} 7. Bb5 {[%emt 0:00:03]} Bd7 {[%emt 0:00:49]} 8. Qd3 {[%emt 0:01:05]} Be7 {[%emt 0:00:11]} 9. O-O-O {[%emt 0:00:24]} Nxd4 {[%emt 0:00:30]} 10. Bxd7+ {[%emt 0:00:15]} Nxd7 {[%emt 0:00:09]} 11. Bxe7 {[%emt 0:00:04]} Kxe7 {[%emt 0:00:08]} 12. Qxd4 {[%emt 0:00:04]} Qb6 {[%emt 0:00:11]} 13. Qd2 {[%emt 0:02:28]} Rhc8 {[%emt 0:00:27]} 14. f4 {[%emt 0:00:17]} Rc4 {[%emt 0:00:38]} 15. Rhe1 {[%emt 0:04:54]} Rac8 {[%emt 0:06:02]} 16. Re3 {[%emt 0:21:43]} Qc5 {[%emt 0:10:48]} 17. f5 {[%emt 0:11:48]} Qe5 {[%emt 0:27:24]} 18. fxe6 {[%emt 0:18:30]} fxe6 {[%emt 0:00:20]} 19. Rg3 {[%emt 0:03:48]} R4c6 {[%emt 0:02:08]} 20. Rg5 {[%emt 0:10:57]} Qf6 {[%emt 0:00:21]} 21. Rf5 {[%emt 0:00:27]} Qg6 {[%emt 0:06:18]} 22. Rb5 {[%emt 0:04:40]} Nc5 {[%emt 0:05:43]} 23. Kb1 {[%emt 0:05:04]} a6 {[%emt 0:03:06]} 24. Rb4 {[%emt 0:01:56]} Qh5 {[%emt 0:07:41]} 25. Rd4 {[%emt 0:04:23]} Qe5 {[%emt 0:01:14]} 26. Nd5+ {[%emt 0:03:23]} Ke8 {[%emt 0:06:41]} 27. Nb4 {[%emt 0:00:57]} Rb6 {[%emt 0:00:10]} 28. Rxd6 {[%emt 0:01:38]} Rxd6 {[%emt 0:00:09]} 29. Qxd6 {[%emt 0:00:06]} Qxd6 {[%emt 0:00:07]} 30. Rxd6 {[%emt 0:00:06]} Ke7 {[%emt 0:00:09]} 31. Rd2 {[%emt 0:04:30]} Rf8 {[%emt 0:00:42]} 32. c3 {[%emt 0:01:26]} Rf1+ {[%emt 0:05:09]} 33. Kc2 {[%emt 0:00:06]} Nxe4 {[%emt 0:00:08]} 34. Re2 {[%emt 0:00:01]} Rf2 {[%emt 0:02:32]} 1/2-1/2

[Event "Israel National League 2024"]
[Site "Israel"]
[Date "2024.03.01"]
[Round "9.1"]
[White "Motylev, Alexander"]
[Black "Peng, Li Min"]
[Result "1/2-1/2"]
[ECO "C63"]
[WhiteElo "2615"]
[BlackElo "2575"]
[Annotator "TA"]
[PlyCount "42"]
[EventDate "2024.01.07"]
[EventType "team-tourn"]
[EventCountry "ISR"]
[SourceTitle "playchess.com"]
[Source "ChessBase"]
[SourceQuality "1"]
[TimeControl "40/5400+30:1800+30"]

{[%evp 11,42,29,37,32,27,26,57,48,74,37,41,45,84,81,90,77,129,116,108,52,52,57,52,54,58,56,56,38,47,0,59,50,56]} 1. e4 {[%emt 0:00:06]} e5 {[%emt 0:01:19]} 2. Nf3 {[%emt 0:00:16]} Nc6 {[%emt 0:00:19]} 3. Bb5 {[%emt 0:00:23]} f5 {[%emt 0:00:49]} 4. d3 {[%emt 0:02:13]} fxe4 {[%emt 0:00:06]} 5. dxe4 {[%emt 0:00:04]} Nf6 {[%emt 0:00:08]} 6. O-O {[%emt 0:02:11]} d6 {[%emt 0:00:14][%cal Of8e7]} 7. Qd3 {[%emt 0:04:26]} a6 {[%emt 0:14:07]} 8. Ba4 {[%emt 0:17:14]} b5 {[%emt 0:01:44]} 9. Bb3 {[%emt 0:00:11] Strongly threatening a4.} Na5 $1 {[%emt 0:00:06]} 10. Nc3 {[%emt 0:04:25]} Nxb3 {[%emt 0:08:17]} 11. axb3 {[%emt 0:01:02] aiming for Nxb5.} Bb7 {[%emt 0:00:09] [#]} 12. Bg5 $1 {[%emt 0:03:04]} Rb8 {[%emt 0:08:33]} 13. Nh4 {[%emt 0:11:06]} h6 {[%emt 0:13:53]} (13... Be7 $142) 14. Ng6 $16 {[%emt 0:08:45]} Rg8 {[%emt 0:00:12]} 15. Bh4 {[%emt 0:14:05] White is much more active.} ({White should play} 15. f4 $16) 15... Kf7 $14 {[%emt 0:25:51]} 16. Bxf6 {[%emt 0:02:38]} Qxf6 {[%emt 0:01:38]} 17. Nxf8 {[%emt 0:00:11]} Rgxf8 {[%emt 0:00:16]} 18. Nd5 {[%emt 0:00:09]} Qd8 {[%emt 0:00:07]} 19. c4 {[%emt 0:05:28]} Kg8 {[%emt 0:00:59]} 20. f3 {[%emt 0:03:49]} (20. Rfb1 $14) 20... c6 {[%emt 0:00:25]} (20... bxc4 $1 $11 21. Qxc4 c6 22. Ne3+ d5) 21. Ne3 {[%emt 0:00:22]} Qb6 {[%emt 0:00:06] Weighted Error Value: White=0.16 (very precise) /Black=0.17 (very precise) .  Mistake:       	White=2     	Black=2      Inaccurate:     	White=1     	Black=2      OK:         	White=5     	Black=6      Best:        	White=2     	Black=1      Strong:       	White=1     	Black=1} 1/2-1/2

[Event "Israel National League 2024"]
[Site "Israel"]
[Date "2024.03.01"]
[Round "9.2"]
[White "Tzidkiya, Yeshaayahu"]
[Black "Sokolovsky, Yahli"]
[Result "1/2-1/2"]
[ECO "C44"]
[WhiteElo "2448"]
[BlackElo "2436"]
[Annotator "TA"]
[PlyCount "88"]
[EventDate "2024.01.07"]
[EventType "team-tourn"]
[EventCountry "ISR"]
[SourceTitle "playchess.com"]
[Source "ChessBase"]
[SourceQuality "1"]
[TimeControl "40/5400+30:1800+30"]

{[%evp 10,88,0,0,0,0,3,0,-29,-25,-30,-87,-81,-102,-95,-97,-100,-95,-67,-93,0,0,0,0,0,-51,0,-11,-16,-18,-4,-22,0,-83,-40,-78,-85,-89,-60,-99,-101,-104,-101,-137,-147,-144,-146,-135,-134,-162,-164,-167,-175,-174,-175,-172,-181,-168,-166,-368,-367,-503,-513,-479,-487,-462,-76,-74,-74,-74,-83,-83,-90,-90,-64,-64,-27,-27,-8,-8,-8]} 1. e4 {[%emt 0:00:04]} e5 {[%emt 0:00:06]} 2. Nf3 {[%emt 0:00:05]} Nc6 {[%emt 0:00:07]} 3. g3 {[%emt 0:00:04]} Nf6 {[%emt 0:00:24]} 4. d3 {[%emt 0:00:04]} d5 {[%emt 0:00:45]} 5. exd5 {[%emt 0:00:05]} Nxd5 {[%emt 0:00:08]} 6. Bg2 {[%emt 0:00:04]} Bg4 {[%emt 0:00:45]} 7. h3 {[%emt 0:03:09]} Be6 {[%emt 0:01:04]} 8. O-O {[%emt 0:07:06]} (8. Qe2 $5) 8... Qd7 {[%emt 0:00:55]} 9. Ng5 {[%emt 0:37:23]} Bf5 {[%emt 0:00:44]} 10. g4 {[%emt 0:04:26]} (10. Nc3 $11 Nxc3 11. bxc3) 10... Bg6 $1 $17 {[%emt 0:00:33]} 11. Nc3 {[%emt 0:00:24]} Nxc3 {[%emt 0:13:07]} 12. bxc3 {[%emt 0:00:03]} h5 $1 {[%emt 0:00:17]} 13. Rb1 {[%emt 0:06:20]} O-O-O {[%emt 0:02:36]} 14. Be3 {[%emt 0:07:42]} hxg4 {[%emt 0:08:10]} (14... f6 $17 15. Ne4 hxg4 16. hxg4 Re8) 15. Qxg4 $11 {[%emt 0:09:00]} Qxg4 {[%emt 0:00:55]} 16. hxg4 {[%emt 0:00:01]} Rh4 {[%emt 0:03:19]} 17. Ne4 {[%emt 0:02:39]} (17. Bxc6 $11 bxc6 18. f3) 17... Bxe4 {[%emt 0:07:04]} 18. Bxe4 {[%emt 0:00:07] aiming for Bf5+.} Rxg4+ {[%emt 0:03:44]} 19. Kh2 {[%emt 0:00:10] Bf5+ would now be deadly.} Rh4+ {[%emt 0:01:16]} 20. Kg3 {[%emt 0:03:14]} Be7 {[%emt 0:01:21]} 21. Kf3 {[%emt 0:16:49]} (21. Bf5+ $1 $11 {remains equal.} Kb8 22. Be4) 21... g6 {[%emt 0:04:03]} 22. Rg1 {[%emt 0:00:15]} Rd6 {[%emt 0:07:17]} 23. Ke2 {[%emt 0:00:18]} Nd8 {[%emt 0:00:02]} 24. Rb5 {[%emt 0:01:49]} Ra6 $36 {[%emt 0:03:49][%mdl 2048] Black is really pushing.} 25. Rxe5 {[%emt 0:00:55] [#]} Bf6 {[%emt 0:00:01]} 26. Rc5 {[%emt 0:00:42]} Rxa2 {[%emt 0:05:58]} 27. Kd2 {[%emt 0:00:06]} c6 {[%emt 0:00:04]} 28. Rc4 {[%emt 0:00:46]} Ra3 {[%emt 0:11:44]} 29. Bc5 {[%emt 0:00:34]} Ra5 {[%emt 0:00:14]} 30. Bd6 {[%emt 0:00:34]} Ne6 {[%emt 0:06:20]} 31. Bg3 {[%emt 0:00:24]} Rg4 {[%emt 0:00:01]} 32. Bd5 {[%emt 0:00:37] Threatens to win with Bxe6+.} Bg5+ {[%emt 0:12:12]} 33. Ke2 {[%emt 0:00:04] Bxe6+ is the strong threat.} Nf4+ {[%emt 0:01:13]} 34. Bxf4 $2 {[%emt 0:00:36]} (34. Kf3 Rxg3+ 35. Rxg3 Rxd5 36. Rxg5 Rxg5 37. Kxf4 Rf5+ 38. Ke3) 34... Rxg1 $19 {[%emt 0:01:37]} 35. Bh2 {[%emt 0:00:03]} Rc1 {[%emt 0:01:12]} 36. Bxf7 {[%emt 0:00:05]} Rxc2+ {[%emt 0:00:45]} 37. Kf1 {[%emt 0:00:03] [#]} Rxf2+ $2 {[%emt 0:02:58]} 38. Kxf2 $17 {[%emt 0:00:04]} Rf5+ {[%emt 0:00:04]} 39. Rf4 {[%emt 0:01:06]} Rxf4+ {[%emt 0:02:31]} (39... Bxf4 $5 40. Be6+ $8 Kb8 41. Bxf5 Bxh2 42. Bxg6 a5 $14) 40. Bxf4 {[%emt 0:00:03]} Bxf4 {[%emt 0:00:05]} 41. Bxg6 {[%emt 0:30:03]} Bd2 {[%emt 0:23:13]} 42. c4 {[%emt 0:00:00]} b5 {[%emt 0:02:11]} 43. Ke2 {[%emt 0:00:00]} Bc3 {[%emt 0:01:16] next ...Kc7 is good for Black.} 44. Be8 {[%emt 0:00:00][%csl LRb5,LRc6]} bxc4 {[%emt 0:04:05] Weighted Error Value: White=0.26 (precise) /Black=0.28 (precise) .  Missed win:     	---       	Black=1      Mistake:       	White=4     	Black=1      Inaccurate:     	White=6     	Black=4      OK:         	White=13    	Black=13     Best:        	White=5     	Black=7      Strong:       	---       	Black=2} 1/2-1/2